bitfinex-derivatives/quotes_ETHF0:USTF0_20251119
["timestamp","ask_amount","ask_price","bid_price","bid_amount"]
[1763542010205,0.52527,3086.1,3086.0,0.6232]
[1763542010397,3.73301,3086.4,3086.3,0.91723]
[1763542010903,4.13531,3086.4,3086.3,0.91723]
[1763542011105,4.13783838,3086.4,3086.3,0.92086112]
[1763542011500,4.13783838,3086.4,3086.3,0.39563112]
[1763542012809,4.13783838,3086.4,3086.3,0.92086112]
[1763542013007,4.13783838,3086.4,3086.3,0.39563112]
[1763542013213,4.13783838,3086.4,3086.3,0.00363112]
[1763542013417,4.90322324,3086.4,3086.3,0.00363112]
[1763542013713,4.13783838,3086.4,3086.3,0.00363112]
[1763542014603,4.9031438,3086.4,3086.3,0.39563112]
[1763542014807,4.13783838,3086.4,3086.3,0.39563112]
[1763542015011,4.13783838,3086.4,3086.3,0.00363112]
[1763542015515,4.13783838,3086.4,3086.3,0.39563112]
[1763542015814,4.13783838,3086.4,3086.3,0.92086112]
[1763542017016,4.13783838,3086.4,3086.3,0.39563112]
[1763542017210,4.13783838,3086.4,3086.3,0.00363112]
[1763542019314,3.73553838,3086.4,3086.3,0.92086112]
[1763542020503,3.21032838,3086.4,3086.3,0.92086112]
[1763542021412,3.21032838,3086.4,3086.3,4.76586112]
[1763542022518,3.73553838,3086.4,3086.3,4.76586112]
[1763542023016,3.21032838,3086.4,3086.3,4.76586112]
[1763542023718,0.00252838,3086.4,3086.3,5.92182907]
[1763542026704,0.00485743,3086.7,3086.6,0.88338]
[1763542026908,0.00485743,3086.7,3086.6,2.03934795]
[1763542027316,0.00485743,3086.7,3086.6,4.72838]
[1763542027821,0.00804432,3086.7,3086.6,4.72838]
[1763542028919,0.89640432,3086.7,3086.6,4.2032]
[1763542029921,0.89640432,3086.7,3086.6,4.72838]
[1763542030821,0.88841,3086.4,3086.3,0.00363112]
[1763542031013,4.86269009,3086.4,3086.3,0.00363112]
[1763542033819,4.86269009,3086.4,3086.3,0.36183112]
[1763542034020,4.86269009,3086.4,3086.3,0.00363112]
[1763542034218,4.86269009,3086.4,3086.3,0.36183112]
[1763542034718,3.97428009,3086.4,3086.3,0.88706112]
[1763542034922,3.2078,3086.4,3086.3,0.88706112]
[1763542036022,3.73301,3086.4,3086.3,0.88706112]
[1763542036221,3.2078,3086.4,3086.3,0.88706112]
[1763542036912,3.2078,3086.4,3086.3,8.76806112]
[1763542037414,3.2078,3086.4,3086.3,9.92402907]
[1763542037620,1.15596795,3087.7,3086.3,9.92402907]
[1763542037621,0.219,3087.0,3086.9,0.56263]
[1763542037825,0.74411,3087.0,3086.9,0.56263]
[1763542038223,0.219,3087.0,3086.9,0.56263]
[1763542038727,0.22320706,3087.0,3086.9,0.56263]
[1763542040425,0.58640706,3087.0,3086.9,0.56263]
[1763542040626,1.11151706,3087.0,3086.9,0.56263]
[1763542042623,1.11151706,3087.0,3086.9,0.52513]
[1763542043427,0.58640706,3087.0,3086.9,0.52513]
[1763542043622,1.11151706,3087.0,3086.9,3.73293]
[1763542045323,0.58640706,3087.0,3086.9,3.77043]
[1763542045527,0.22320706,3087.0,3086.9,3.77043]
[1763542046224,0.58640706,3087.0,3086.9,3.77043]
[1763542046931,1.11151706,3087.0,3086.9,3.73293]
[1763542047322,0.74831706,3087.0,3086.9,3.77043]
[1763542047522,1.11151706,3087.0,3086.9,3.73293]
[1763542048035,1.11151706,3087.0,3086.9,7.57793]
[1763542048327,1.43581706,3087.0,3086.9,3.5208]
[1763542048527,1.11151706,3087.0,3086.9,3.5208]
[1763542049223,0.88836,3086.7,3086.6,0.00485743]
[1763542050232,1.65394061,3086.7,3086.6,0.00485743]
[1763542051631,1.65396744,3086.7,3086.6,0.00485743]
[1763542053835,1.29076744,3086.7,3086.6,0.56753743]
[1763542054033,0.90706,3086.7,3086.6,4.08833743]
[1763542055733,0.90706,3086.7,3086.6,3.52565743]
[1763542055938,0.90711,3086.4,3086.3,0.00363112]
[1763542059034,2.06307795,3086.4,3086.3,0.00363112]
[1763542059239,0.90711,3086.4,3086.3,0.11123112]
[1763542059434,1.13999,3086.5,3086.4,0.1076]
[1763542059834,0.75809,3086.5,3086.4,0.52521]
[1763542060142,0.90711,3086.4,3086.3,0.00363112]
[1763542060332,0.90711,3086.4,3086.3,0.52886112]
[1763542060527,0.90711,3086.4,3086.3,0.63646112]
[1763542061443,0.90711,3086.4,3086.3,0.00363112]
[1763542061836,0.90711,3086.4,3086.3,0.11123112]
[1763542062039,0.90711,3086.4,3086.3,0.00363112]
[1763542062040,4.11491,3086.4,3086.3,0.00363112]
[1763542062234,4.8807527,3086.4,3086.3,0.00363112]
[1763542063137,0.90711,3086.4,3086.3,0.00363112]
[1763542064042,0.3819,3085.9,3085.5,1.15596795]
[1763542064246,3.4407,3086.0,3085.8,0.52531]
[1763542064447,0.3819,3085.8,3085.7,0.63293]
[1763542064647,1.14009,3086.0,3085.9,0.1076]
[1763542064946,1.14009,3086.0,3085.9,3.3154]
[1763542065147,1.14009,3086.0,3085.9,3.2115648]
[1763542067336,0.3819,3085.3,3085.2,0.63301]
[1763542067657,0.2329,3085.5,3085.4,0.1076]
[1763542067950,0.6148,3085.5,3085.4,0.1076]
[1763542068248,0.6148,3085.5,3085.3,0.5254]
[1763542068249,0.3819,3085.4,3085.3,0.5254]
[1763542068435,0.38675743,3085.6,3085.5,0.63296]
[1763542068641,0.38675743,3085.6,3085.5,3.2078]
[1763542068953,0.38675743,3085.6,3085.5,3.3154]
[1763542069648,0.3819,3085.4,3085.3,0.00410072]
[1763542070036,0.3819,3085.4,3085.3,0.11170072]
[1763542070240,0.3819,3085.4,3085.3,0.00410072]
[1763542070635,0.3819,3085.4,3085.3,0.11170072]
[1763542070849,0.3819,3085.4,3085.3,0.63710072]
[1763542072249,0.2329,3085.5,3085.4,0.1076]
[1763542072447,0.3819,3085.4,3085.3,0.63709072]
[1763542072747,0.6148,3085.5,3085.4,0.63298]
[1763542072949,1.14017,3085.5,3085.4,0.63298]
[1763542073149,0.2329,3085.5,3085.4,0.63298]
[1763542073339,0.6148,3085.5,3085.4,0.63298]
[1763542073539,0.2329,3085.5,3085.4,0.63298]
[1763542075360,0.00485743,3085.6,3085.5,0.63296]
[1763542075853,0.00485743,3085.6,3085.5,3.84076]
[1763542076058,0.90711,3086.4,3086.3,0.62791]
[1763542076553,0.3819,3086.4,3086.3,0.62791]
[1763542077257,0.00485743,3086.7,3086.4,0.62791]
[1763542077258,1.14,3086.5,3086.4,0.62791]
[1763542077547,0.6148,3086.5,3086.1,3.2078]
[1763542077748,0.53003743,3086.7,3086.6,0.1027]
[1763542077749,0.38675743,3086.7,3086.6,0.1027]
[1763542077949,0.91191743,3086.7,3086.1,3.2078]
[1763542078142,0.3819,3086.6,3086.5,0.62789]
[1763542078639,0.90708,3086.6,3086.5,0.62789]
[1763542079157,0.53001743,3086.7,3086.6,0.62788]
[1763542079454,0.91191743,3086.7,3086.6,0.62788]
[1763542081051,0.00485743,3086.7,3086.6,0.62788]
[1763542081451,0.00485743,3086.7,3086.6,3.83568]
[1763542081658,0.00420706,3087.0,3086.9,0.62783]
[1763542083359,0.2329,3087.5,3087.4,0.52504]
[1763542083558,0.2329,3087.5,3087.4,3.73284]
[1763542084264,0.23589056,3087.5,3087.4,3.73284]
[1763542085160,0.00299056,3087.5,3087.4,3.73284]
[1763542086056,1.08811056,3087.5,3087.4,3.2078]
[1763542086253,0.20699056,3087.5,3087.4,0.52504]
[1763542086453,0.20699056,3087.5,3087.4,3.73284]
[1763542086454,0.56309056,3087.5,3087.4,3.73284]
[1763542086958,0.20699056,3087.5,3087.4,3.73284]
[1763542091156,0.56309056,3087.5,3087.4,3.2078]
[1763542091655,0.56309056,3087.5,3086.3,2.31230487]
[1763542091656,0.3561,3086.3,3086.2,2.29033954]
[1763542091846,0.88136,3086.2,3086.1,0.3545]
[1763542092051,0.52526,3086.1,3086.0,0.00485743]
[1763542092260,3.2078,3086.3,3086.2,0.3545]
[1763542092454,3.5639,3086.3,3086.2,0.3545]
[1763542092660,3.5639,3086.3,3086.0,0.00485743]
[1763542092661,0.88136,3086.1,3086.0,0.00485743]
[1763542092960,0.88136,3086.1,3086.0,0.88463743]
[1763542093661,0.88136,3086.1,3086.0,0.00485743]
[1763542096260,0.3561,3085.6,3085.5,0.87986]
[1763542096860,0.88148,3085.4,3085.3,0.52950072]
[1763542097060,0.3561,3085.5,3085.4,0.87988]
[1763542097369,0.36095743,3085.8,3085.7,0.87983]
[1763542097554,0.52536,3085.6,3085.4,0.52537]
[1763542097868,0.00485743,3085.8,3085.4,0.52537]
[1763542097869,0.88146,3085.5,3085.4,0.3545]
[1763542098161,0.88148,3085.4,3085.3,0.35860072]
[1763542098466,0.88148,3085.4,3085.3,0.00410072]
[1763542098761,0.3561,3085.4,3085.3,0.00410072]
[1763542099064,0.3561,3085.5,3085.4,0.3545]
[1763542099563,0.5601,3085.5,3085.4,0.3545]
[1763542099762,0.88148,3085.4,3085.3,0.00410072]
[1763542099963,0.88148,3085.4,3085.3,0.35860072]
[1763542100155,0.00485743,3085.8,3085.3,0.88399072]
[1763542100764,0.88147,3085.5,3085.4,0.3545]
[1763542101479,0.88144,3085.7,3085.6,0.3545]
[1763542102160,0.3561,3085.7,3085.6,0.3545]
[1763542102360,0.00485743,3085.8,3085.7,0.3545]
[1763542102665,0.3561,3085.6,3085.5,0.87986]
[1763542103367,0.36095743,3085.8,3085.7,0.3545]
[1763542105068,0.3561,3085.7,3085.6,0.87985]
[1763542105563,0.00485743,3085.8,3085.6,0.87985]
[1763542105770,0.36095743,3085.8,3085.7,0.3545]
[1763542106369,0.00485743,3085.8,3085.7,0.3545]
[1763542106568,0.36095743,3085.8,3085.7,0.87983]
[1763542106763,0.00485743,3085.8,3085.7,0.87983]
[1763542106963,0.36095743,3085.8,3085.7,0.87983]
[1763542107672,0.36095743,3085.8,3085.7,4.40063]
[1763542109471,0.88626743,3085.8,3085.7,4.40063]
[1763542109772,0.36095743,3085.8,3085.7,4.40063]
[1763542109972,0.00485743,3085.8,3085.7,4.40063]
[1763542111174,0.36095743,3085.8,3085.7,4.40063]
[1763542111668,0.3359,3085.4,3085.3,0.86360072]
[1763542111870,0.86128,3085.4,3085.3,0.86360072]
[1763542112072,0.86128,3085.4,3085.3,0.33820072]
[1763542112666,0.86128,3085.4,3085.3,0.86360072]
[1763542113676,4.06908,3085.4,3085.3,0.33820072]
[1763542113976,4.06908,3085.4,3085.3,0.86360072]
[1763542114286,4.06908,3085.4,3085.3,0.00410072]
[1763542115277,0.52538,3085.4,3085.3,0.86360072]
[1763542115476,0.86128,3085.4,3085.3,0.00410072]
[1763542117672,0.86128,3085.4,3085.3,0.52950072]
[1763542117875,0.86128,3085.4,3085.3,0.00410072]
[1763542118883,0.86128,3085.4,3085.3,0.52950072]
[1763542119379,0.86128,3085.4,3085.3,0.00410072]
[1763542120583,0.86128,3085.4,3085.3,0.52950072]
[1763542121378,3.21265743,3085.8,3085.3,0.33820072]
[1763542121584,3.21265743,3085.8,3085.7,1.9900917]
[1763542121792,3.98145496,3085.8,3085.7,1.9900917]
[1763542122176,4.31735496,3085.8,3085.7,1.9900917]
[1763542122378,4.31738548,3085.8,3085.7,1.9900917]
[1763542122883,4.84269548,3085.8,3085.7,1.9900917]
[1763542123584,4.84269548,3085.8,3085.7,0.52533]
[1763542123787,4.84269548,3085.8,3085.7,0.85943]
[1763542124180,4.50679548,3085.8,3085.7,0.85943]
[1763542124481,4.33218548,3085.8,3085.7,1.9900917]
[1763542124785,3.73796743,3085.8,3085.7,1.9900917]
[1763542125084,3.73796743,3085.8,3085.7,5.5108917]
[1763542125881,3.21265743,3085.8,3085.7,1.9900917]
[1763542126188,3.21265743,3085.8,3085.7,0.85943]
[1763542127184,0.5252,3086.5,3086.4,0.345]
[1763542127579,1.64452461,3086.5,3086.4,0.345]
[1763542127876,0.8759,3086.5,3086.4,0.345]
[1763542128791,0.8759,3086.5,3086.4,0.87021]
[1763542129088,1.0783,3086.5,3086.4,0.345]
[1763542129298,0.87591,3086.4,3086.3,0.52523]
[1763542129496,0.87595,3086.3,3086.2,0.87025]
[1763542129885,0.3507,3086.3,3086.2,0.87025]
[1763542130884,1.0783,3086.5,3086.4,0.87021]
[1763542131587,1.0783,3086.5,3086.4,0.345]
[1763542131792,0.87591,3086.4,3086.3,0.52523]
[1763542132089,0.87591,3086.4,3086.3,0.87023]
[1763542132586,0.87591,3086.4,3086.3,0.345]
[1763542132786,0.87591,3086.4,3086.3,0.87023]
[1763542133087,0.87591,3086.4,3086.3,0.52523]
[1763542133985,0.87596,3086.1,3086.0,3.2078]
[1763542134293,0.87603,3085.7,3085.6,3.73314]
[1763542134894,0.87603,3085.7,3085.6,4.07814]
[1763542135089,0.3507,3085.7,3085.6,4.07814]
[1763542137889,3.2078,3085.7,3085.0,0.05241491]
[1763542138102,3.73323,3085.1,3085.0,0.24491491]
[1763542138393,6.25791574,3085.1,3085.0,0.24491491]
[1763542138980,6.26073002,3085.1,3085.0,0.24741974]
[1763542140789,4.50410536,3085.1,3085.0,0.24741974]
[1763542141684,0.00281428,3085.1,3085.0,4.32566974]
[1763542141893,0.52535,3085.6,3085.5,0.76346]
[1763542142190,0.60135,3085.6,3085.5,1.15516]
[1763542142495,0.60135,3085.6,3085.5,0.2381]
[1763542142795,3.2078,3085.9,3085.4,0.3917]
[1763542142986,0.52534,3085.7,3085.6,0.3917]
[1763542143188,0.60134,3085.7,3085.6,0.3917]
[1763542143499,0.60134,3085.7,3085.6,0.91705]
[1763542143887,0.52534,3085.7,3085.6,0.3917]
[1763542144087,0.52532,3085.8,3085.7,0.52532]
[1763542144388,0.52532,3085.8,3085.7,0.91702]
[1763542144588,0.00402331,3085.9,3085.8,0.91701]
[1763542144790,0.52518,3086.6,3086.5,0.6298]
[1763542145692,0.52766249,3086.6,3086.5,0.6298]
[1763542145887,0.60366249,3086.6,3086.5,0.2381]
[1763542147995,0.00248249,3086.6,3086.5,1.15499]
[1763542149196,0.52766249,3086.6,3086.5,1.15499]
[1763542150800,0.52766249,3086.6,3086.5,0.6298]
[1763542151699,0.00248249,3086.6,3086.5,0.6298]
[1763542151902,0.00485743,3086.8,3086.7,0.91686]
[1763542153003,0.00886284,3086.8,3086.7,0.91686]
[1763542154908,0.53400284,3086.8,3086.7,0.91686]
[1763542155804,0.00886284,3086.8,3086.7,0.91686]
[1763542156700,0.53400284,3086.8,3086.7,0.91686]
[1763542157705,0.60368,3086.6,3086.5,1.15498]
[1763542158009,0.60368,3086.6,3086.5,0.76328]
[1763542158209,0.60368,3086.6,3086.5,0.2381]
[1763542158504,0.60369,3086.5,3086.4,0.00485743]
[1763542158709,3.81149,3086.5,3086.4,0.00485743]
[1763542159006,0.59904,3085.7,3085.6,0.3917]
[1763542159209,0.59904,3085.7,3085.6,0.91705]
[1763542160626,3.73308,3086.0,3085.9,0.3917]
[1763542161733,3.80678,3086.0,3085.9,0.3917]
[1763542162124,0.52533,3085.7,3085.6,0.91703]
[1763542162832,0.59903,3085.7,3085.6,0.91703]
[1763542163415,0.59908,3085.4,3085.3,0.00485743]
[1763542163619,0.52537,3085.5,3085.4,0.91708]
[1763542164520,0.59907,3085.5,3085.4,0.91708]
[1763542165425,0.59907,3085.5,3085.4,0.3917]
[1763542165619,0.52537,3085.5,3085.4,0.3917]
[1763542165925,0.52534,3085.7,3085.6,0.3722]
[1763542166427,0.52532,3085.8,3085.7,0.89752]
[1763542166728,3.7331,3086.0,3085.9,0.3722]
[1763542167528,0.52535,3085.7,3085.6,0.3722]
[1763542168729,0.52535,3085.7,3085.6,0.89755]
[1763542169116,0.52535,3085.6,3085.5,0.2389]
[1763542169430,0.52535,3085.6,3085.5,0.6111]
[1763542169623,0.52535,3085.6,3085.5,1.13647]
[1763542169820,0.52535,3085.6,3085.5,0.6111]
[1763542170426,3.2078,3085.6,3085.3,0.00485743]
[1763542170927,0.52538,3085.4,3085.3,0.00485743]
[1763542178825,0.52543,3085.1,3085.0,0.05491974]
[1763542179536,0.52543,3085.1,3085.0,0.81246974]
[1763542179838,0.52543,3085.1,3085.0,1.18646974]
[1763542180039,0.52543,3085.1,3085.0,0.81246974]
[1763542180238,0.52543,3085.1,3085.0,0.28701974]
[1763542180435,3.73323,3085.1,3085.0,0.28701974]
[1763542181535,0.52541,3085.3,3085.2,0.374]
[1763542182330,0.52541,3085.3,3085.2,0.89942]
[1763542183230,0.52541,3085.3,3084.0,2.57341395]
[1763542183231,3.2078,3083.8,3082.3,7.53434832]
[1763542183429,3.2078,3082.4,3082.0,0.2521]
[1763542183624,1.94879337,3083.3,3082.5,0.2321]
[1763542183829,0.52585,3082.7,3082.5,0.2321]
[1763542184024,1.16816261,3083.4,3083.0,0.2321]
[1763542184227,3.2078,3083.1,3083.0,0.2348284]
[1763542184433,4.14795563,3083.1,3083.0,0.2348284]
[1763542184635,4.14795563,3083.1,3083.0,1.37848519]
[1763542185234,4.14795563,3083.1,3083.0,0.2348284]
[1763542188736,4.14795563,3083.1,3083.0,0.0027284]
[1763542189546,5.31126081,3083.1,3083.0,0.0027284]
[1763542190241,4.14795563,3083.1,3083.0,0.0027284]
[1763542193147,5.31126081,3083.1,3083.0,0.0027284]
[1763542193342,4.14795563,3083.1,3083.0,0.0027284]
[1763542193738,5.88200717,3083.1,3082.5,0.2321]
[1763542193933,3.73366,3082.6,3082.5,0.2321]
[1763542194134,4.67381563,3082.6,3082.5,0.2321]
[1763542194843,4.67381563,3082.6,3082.5,0.23557253]
[1763542196247,4.67381563,3082.6,3082.5,1.37922932]
[1763542196544,4.67381563,3082.6,3082.5,0.60957253]
[1763542197546,4.67381563,3082.6,3082.5,0.23557253]
[1763542198038,4.67381563,3082.6,3082.5,1.37922932]
[1763542200643,4.67381563,3082.6,3082.5,0.00347253]
[1763542200845,4.67381563,3082.6,3082.5,0.23557253]
[1763542201243,3.73366,3082.6,3082.5,0.23557253]
[1763542201445,4.60653191,3082.6,3082.5,0.23557253]
[1763542202042,0.52595,3082.1,3082.0,0.2521]
[1763542202244,4.60662191,3082.1,3082.0,0.2521]
[1763542203046,4.60662191,3082.1,3082.0,0.25528183]
[1763542203351,0.52603,3081.6,3081.5,0.2321]
[1763542203555,0.52603,3081.6,3080.0,0.67426933]
[1763542203556,0.52612,3081.1,3080.0,0.42]
[1763542203847,0.5262,3080.6,3080.0,0.42]
[1763542204049,4.60687191,3080.6,3080.5,1.1515]
[1763542204242,4.60991341,3080.6,3080.5,1.92497076]
[1763542204840,6.27975606,3080.6,3080.5,0.00381397]
[1763542205044,7.43382951,3080.6,3080.5,0.42381397]
[1763542205249,6.27975606,3080.6,3080.5,0.42381397]
[1763542205453,7.43302751,3080.6,3080.5,0.42381397]
[1763542205753,5.76318486,3080.6,3080.5,0.42381397]
[1763542205951,7.43302751,3080.6,3080.5,0.42381397]
[1763542206252,6.27975606,3080.6,3080.5,0.42381397]
[1763542206550,4.60991341,3080.6,3080.5,0.42381397]
[1763542207149,4.60991341,3080.6,3080.5,3.97e-06]
[1763542207150,6.34089386,3080.6,3080.5,3.97e-06]
[1763542207454,0.52629,3080.1,3080.0,1.1515]
[1763542207642,3.2078,3080.1,3080.0,1.1515]
[1763542207838,4.08067191,3080.1,3080.0,1.92115679]
[1763542208039,4.08067191,3080.1,3080.0,2.44745679]
[1763542208354,4.60696191,3080.1,3080.0,1.9251655]
[1763542208554,4.08067191,3080.1,3080.0,2.4514655]
[1763542209048,4.60696191,3080.1,3080.0,1.9251655]
[1763542209751,4.08067191,3080.1,3080.0,2.4514655]
[1763542210244,4.60696191,3080.1,3080.0,2.4514655]
[1763542210842,4.08067191,3080.1,3080.0,2.4514655]
[1763542211951,2.32451365,3080.9,3080.0,2.4514655]
[1763542211952,1.73191121,3081.0,3080.9,0.52615]
[1763542212258,0.4422,3081.0,3080.9,11.1668]
[1763542212444,0.4422,3081.0,3080.9,17.1668]
[1763542212646,0.4422,3081.5,3081.4,0.52606]
[1763542213155,0.4447683,3081.5,3081.4,0.52606]
[1763542215054,0.4447683,3081.5,3081.4,3.06306]
[1763542215950,0.4447683,3081.5,3081.4,0.52606]
[1763542216151,0.00486554,3081.8,3081.4,0.52606]
[1763542216152,0.00486554,3081.8,3081.7,0.52601]
[1763542217257,0.00819126,3081.8,3081.7,0.52601]
[1763542217656,3.2078,3082.3,3082.2,0.52593]
[1763542218151,0.4422,3082.5,3082.4,0.52589]
[1763542218358,0.96808,3082.5,3082.4,0.52589]
[1763542218749,0.9714394,3082.5,3082.4,0.52919069]
[1763542219052,0.9714394,3082.5,3082.4,0.00330069]
[1763542219053,1.6818394,3082.5,3082.4,0.00330069]
[1763542223952,2.47112271,3082.5,3082.4,0.00330069]
[1763542224154,1.3591,3081.8,3081.7,0.52601]
[1763542224551,0.8331,3081.8,3081.7,0.52601]
[1763542224758,0.52601,3081.7,3081.5,0.52603]
[1763542224957,0.8331,3081.7,3081.6,0.52603]
[1763542225160,0.8331,3081.7,3081.6,0.52889525]
[1763542225359,1.35911,3081.7,3081.6,0.52889525]
[1763542226157,1.35911,3081.7,3081.6,0.00286525]
[1763542226360,0.526,3081.8,3081.7,0.52601]
[1763542227055,3.7467,3082.0,3081.8,0.52598]
[1763542227056,1.35908,3081.9,3081.8,0.52598]
[1763542228155,0.52601,3081.8,3081.7,0.52601]
[1763542228363,1.35911,3081.8,3081.7,0.52601]
[1763542229864,1.35911,3081.7,3081.6,0.00286525]
[1763542230264,0.8331,3081.7,3081.6,0.52889525]
[1763542231067,1.35911,3081.7,3081.6,0.52889525]
[1763542231575,0.8331,3081.7,3081.6,0.52889525]
[1763542231966,1.35911,3081.7,3081.6,0.52889525]
[1763542232570,4.5538,3082.0,3081.9,0.52598]
[1763542232870,0.8071,3081.9,3081.8,0.52599]
[1763542233176,0.52601,3081.8,3081.6,0.00286525]
[1763542233375,0.8071,3081.8,3081.7,0.52601]
[1763542233577,1.3331,3081.8,3081.7,0.52601]
[1763542234870,0.8071,3081.8,3081.7,0.52601]
[1763542235176,1.3331,3081.8,3081.7,0.52601]
[1763542235878,0.526,3081.8,3081.7,0.52601]
[1763542236173,1.33308,3081.9,3081.8,0.52598]
[1763542236766,3.7467,3082.0,3081.9,0.52598]
[1763542237167,0.5389,3082.0,3081.9,0.52598]
[1763542237567,1.33311,3081.7,3081.6,0.00286525]
[1763542239378,2.1122294,3081.7,3081.6,0.00286525]
[1763542240472,2.1122294,3081.7,3080.9,0.8115]
[1763542240473,0.525,3081.5,3080.9,0.8115]
[1763542240673,0.52616,3080.9,3080.5,0.8115]
[1763542240881,3.7328,3081.0,3080.7,0.8115]
[1763542241084,3.7328,3081.0,3080.3,3.2078]
[1763542241085,3.2078,3081.0,3080.9,0.8115]
[1763542241381,0.525,3081.5,3080.9,4.02249964]
[1763542241576,0.52598,3081.9,3081.5,1.33755]
[1763542241777,1.5879256,3081.8,3081.7,0.8115]
[1763542241977,0.00486554,3082.0,3081.9,0.8115]
[1763542242177,0.00486554,3082.0,3081.5,0.3331]
[1763542242178,3.7361594,3082.5,3082.2,0.8115]
[1763542242384,0.8071,3082.3,3082.2,0.8115]
[1763542242582,2.11362351,3082.3,3082.0,0.52595]
[1763542242783,1.3321,3082.0,3081.9,3.2078]
[1763542243584,0.8071,3081.8,3081.3,6.4888]
[1763542243887,0.00486554,3082.3,3082.0,0.52596]
[1763542243888,1.33788554,3082.3,3082.0,0.52596]
[1763542244073,0.8071,3082.1,3082.0,0.52596]
[1763542244381,1.05097,3082.0,3081.7,3.2078]
[1763542244581,1.05097,3082.0,3081.8,0.52599]
[1763542244776,0.8071,3081.9,3081.8,0.8115]
[1763542244979,0.8071,3081.8,3081.7,3.2078]
[1763542245379,0.8071,3081.5,3081.4,0.52606]
[1763542245582,1.3321,3081.5,3081.4,0.52606]
[1763542245785,1.3321,3081.5,3081.4,1.33756]
[1763542247182,1.85816,3081.5,3081.1,3.2078]
[1763542247490,1.33317,3081.4,3081.3,0.8115]
[1763542248288,0.8071,3081.4,3081.3,0.8115]
[1763542249393,1.85815,3081.5,3081.4,0.8115]
[1763542249793,0.8071,3081.4,3081.3,0.52608]
[1763542250687,1.3321,3081.0,3080.9,1.34570518]
[1763542250885,0.8071,3081.2,3081.1,0.52611]
[1763542252098,1.3321,3081.0,3080.9,0.00806518]
[1763542252590,1.3321,3081.0,3080.9,0.81956518]
[1763542255595,1.3321,3081.0,3080.9,1.34571518]
[1763542256495,1.85823,3081.0,3080.9,1.34571518]
[1763542258992,1.85823,3081.0,3080.9,0.00806518]
[1763542259197,1.85823,3081.0,3080.9,0.81956518]
[1763542259792,1.85823,3081.0,3080.9,0.00806518]
[1763542260197,0.8071,3080.2,3080.1,3.2078]
[1763542260414,0.8071,3080.2,3080.1,4.0193]
[1763542260697,1.3321,3080.0,3079.9,1.35782]
[1763542260897,3.2078,3080.4,3080.3,1.33775]
[1763542261288,0.00402503,3080.4,3080.3,1.34040775]
[1763542264803,0.00402503,3080.4,3080.3,1.32610775]
[1763542264992,0.00402503,3080.4,3080.3,1.82610775]
[1763542269005,1.3411,3081.0,3080.9,0.7972]
[1763542269306,0.525,3081.0,3080.9,1.32335]
[1763542270102,0.52901254,3081.0,3080.9,1.32335]
[1763542272504,0.00401254,3081.0,3080.9,1.32335]
[1763542274407,0.00401254,3081.0,3080.9,9.27135]
[1763542274991,0.00486554,3081.3,3081.2,1.3233]
[1763542276107,0.00743791,3081.3,3081.2,1.3233]
[1763542276900,0.00743791,3081.3,3081.2,9.2683]
[1763542277608,0.00743791,3081.3,3081.2,1.3233]
[1763542277808,0.00743791,3081.3,3081.2,9.2423]
[1763542278206,3.11700637,3081.8,3081.7,1.32321]
[1763542278708,3.93310637,3081.8,3081.7,1.32321]
[1763542278899,3.11700637,3081.8,3081.7,1.32321]
[1763542279317,3.11982644,3081.8,3081.7,1.32321]
[1763542279514,0.00282007,3081.8,3081.7,1.32321]
[1763542279701,0.00486554,3082.1,3082.0,1.66456]
[1763542279903,0.00486554,3082.1,3082.0,12.81436]
[1763542280799,0.00734751,3082.1,3082.0,12.81436]
[1763542281200,3.2078,3082.7,3082.6,1.32306]
[1763542281705,1.321,3083.5,3083.4,1.32292]
[1763542282002,0.5049,3083.5,3083.4,9.26292]
[1763542282208,4.5288,3084.0,3083.9,0.52564]
[1763542282510,4.53193881,3084.0,3083.9,0.52564]
[1763542283201,5.05755881,3084.0,3083.9,0.52564]
[1763542283401,0.8161,3083.9,3083.8,1.32285]
[1763542283597,0.7664,3083.7,3083.6,0.80186554]
[1763542283802,0.7664,3083.7,3083.6,8.74286554]
[1763542284002,0.7664,3083.7,3083.6,9.26855554]
[1763542284205,3.71583881,3084.0,3083.9,1.32264]
[1763542284401,0.00313881,3084.0,3083.9,1.32264]
[1763542286103,0.47103881,3084.0,3083.9,1.32264]
[1763542286298,1.23743881,3084.0,3083.9,4.66264]
[1763542288411,1.23743881,3084.0,3083.9,9.25764]
[1763542289015,0.7664,3083.9,3083.8,3.2078]
[1763542289313,0.7664,3083.7,3083.6,0.00486554]
[1763542289503,0.7664,3083.7,3083.6,0.53055554]
[1763542290608,1.29207,3083.7,3083.6,0.00486554]
[1763542291316,1.76001,3083.5,3083.4,0.00374562]
[1763542292511,1.2343,3083.5,3083.4,1.29826562]
[1763542292917,1.76001,3083.5,3083.4,1.29826562]
[1763542293112,0.4679,3083.5,3083.4,1.29826562]
[1763542293412,1.24858,3083.7,3083.6,1.29447]
[1763542293618,0.7229,3083.7,3083.6,1.29447]
[1763542293817,1.19393881,3084.0,3083.9,0.52564]
[1763542294712,1.19393881,3084.0,3083.9,1.29444]
[1763542295226,0.00313881,3084.0,3083.9,1.29444]
[1763542296316,3.9307,3084.9,3084.8,0.7688]
[1763542296513,3.9307,3084.9,3084.8,0.52548]
[1763542296708,3.2078,3084.9,3084.8,1.29428]
[1763542297218,3.21163254,3084.9,3084.8,1.29428]
[1763542299817,0.00383254,3084.9,3084.8,9.38408]
[1763542300019,0.00486554,3085.2,3085.1,0.7527]
[1763542300217,0.00486554,3085.2,3085.1,1.27813]
[1763542300622,0.7264,3084.9,3084.8,1.28304554]
[1763542300918,4.46207836,3084.9,3084.8,0.00486554]
[1763542301118,0.7264,3084.4,3084.3,0.52555]
[1763542301708,0.4242,3084.5,3084.4,0.52555]
[1763542301709,1.1506,3084.5,3084.4,0.52555]
[1763542302012,1.67614,3084.5,3084.4,0.52555]
[1763542302620,0.7264,3084.3,3084.2,0.52557]
[1763542302821,0.7264,3084.1,3084.0,2.96193904]
[1763542303023,0.7264,3083.7,3083.6,3.2078]
[1763542303319,0.4242,3084.0,3083.9,0.52564]